Workbook

Sheet 入力してください
C4: 令和7年度町民税・県民税申告書作成ページ
D24: ①下記の項目を入力してください。（※部分は必須項目です。）
D32: 提出年月日 | AQ32: 年 | BC32: 月 | BP32: 日
D36: ※現住所
D41: ※1月1日現在の住所
D46: ※氏名
D51: ※氏名（フリガナ）
D56: ※生年月日
D61: 世帯主の名前
D66: 続柄
D71: ※電話番号（日中連絡のつく番号）
D76: 業種又は職種
D84: ②令和６年中の所得について、該当するものをご入力ください。
D92: ○収入がなかった方、遺族年金・障害年金のみの方
E97: 下記のうち該当するものに✓を入れてください。
M103: 収入なし
BJ105: FALSE
M108: 遺族年金のみ
BJ111: FALSE
M113: 障害年金のみ
BJ116: FALSE
D123: ○営業等所得がある方
E129: 収入金額 | BQ129: 円
E134: 必要経費 | BQ134: 円
D144: ○農業所得がある方
E150: 収入金額 | BQ150: 円
E155: 必要経費 | BQ155: 円
D165: ○不動産所得がある方
E171: 収入金額 | BQ171: 円
E176: 必要経費 | BQ176: 円
D186: ○給与所得がある方
E192: 源泉徴収票をお持ちの方はこちらをクリックしてください
E197: 源泉徴収票をお持ちでない方はこちらをクリックしてください
D207: ○公的年金がある方（遺族年金、障害年金は除く）
E213: 支払金額 | BQ213: 円
E218: 社会保険料の金額 | BQ218: 円
D226: ○雑所得（公的年金以外）がある方
D233: ↓事業と称するに至らない所得（シルバー配分金等）はこちらに入力してください。
D238: 収入金額 | BP238: 円
D243: 必要経費 | BP243: 円
D251: ↓生命保険契約に基づく個人年金等はこちらに入力してください。
D256: 収入金額 | BP256: 円
D261: 必要経費 | BP261: 円
D275: ③各種控除について、該当するものをご入力ください。
D282: ○令和６年中に社会保険料を支払った方
CF285: 源泉徴収票に入っていない社会保険料がある方は、入っていない分の内訳を入力してください。
D289: 源泉徴収票記載分 | AD289: =源泉あり!AE25+入力してください!AE218 -> 0 | BP289: 円
CF293: 社会保険料の種類（例：国民健康保険、国民年金等） | DG293: 金額
D294: 源泉徴収票に入っていない分がある方
D303: ○令和６年中に小規模企業共済等の掛金がある方
EE306: 円
D310: 源泉徴収票記載分 | AD310: =源泉あり!AE30 -> 0 | BP310: 円
EE311: 円
D315: 源泉徴収票に入っていない分がある方 | BP315: 円
D331: ○令和６年中に生命保険料を支払った方（年末調整で入れていないものに限る）
D338: 新生命保険料の合計額 | BP338: 円
D343: 旧生命保険料の合計額 | BP343: 円
D348: 新個人年金保険料の合計額 | BP348: 円
D353: 旧個人年金保険料の合計額 | BP353: 円
D358: 介護医療保険料の合計額 | BP358: 円
D366: ○令和６年中に地震保険料を支払った方
D391: 地震保険料の合計額 | BP391: 円
D396: 旧長期損害保険料の合計額 | BP396: 円
D404: ○寡婦控除、ひとり親控除、勤労学生控除に該当する方
CX410: 「寡婦控除」に✓を入れた方は、下記のうち該当するものに✓を入れてください。 | KV410: 離婚
E411: 該当するものに✓を入れてください。 | AB411: 寡婦控除 | HG411: 0 | KV411: 未帰還
AB418: ひとり親控除
AB425: 勤労学生控除
CX426: 「勤労学生控除」に✓を入れた方は、学校名を入力してください。
CX432: （学校名）
D527: ○本人やご家族が障害者の方
D533: 1人目 | L533: 氏名 | CB533: 2人目 | CJ533: 氏名
L539: 氏名（フリガナ） | CJ539: 氏名（フリガナ）
L545: 障害の程度（等級） | BN545: 級度 | CJ545: 障害の程度（等級） | EL545: 級度
L551: 【本人の場合】 障害区分 | CJ551: 【本人の場合】 障害区分
L554: 【配偶者の場合】 障害区分 | CJ554: 【配偶者の場合】 障害区分
L557: 【扶養親族の場合】 障害区分 | CJ557: 【扶養親族の場合】 障害区分
D630: ○配偶者（特別）控除に該当する方
D636: 配偶者の氏名
D641: 配偶者の氏名（フリガナ）
D646: 配偶者の生年月日
D651: 配偶者の合計所得金額 | BT651: 円
D689: ○扶養親族がいる方（16歳以上） | CY689: ○扶養親族がいる方（16歳未満）
CY698: 1人目 | DI698: 氏名
DI703: 氏名（フリガナ）
DI708: 生年月日
DI713: 続柄
D715: 1人目 | N715: 氏名
DI718: 居住実態
N720: 氏名（フリガナ）
CY724: 2人目 | DI724: 氏名
N725: 生年月日
DI729: 氏名（フリガナ）
N730: 続柄
DI734: 生年月日
N735: 居住実態
DI739: 続柄
D741: 2人目 | N741: 氏名
DI744: 居住実態
N746: 氏名（フリガナ）
CY750: 3人目 | DI750: 氏名
N751: 生年月日
DI755: 氏名（フリガナ）
N756: 続柄
DI760: 生年月日
N761: 居住実態
DI765: 続柄
D767: 3人目 | N767: 氏名
DI770: 居住実態
N772: 氏名（フリガナ）
N777: 生年月日
N782: 続柄
N787: 居住実態
D793: 4人目 | N793: 氏名
N798: 氏名（フリガナ）
N803: 生年月日
N808: 続柄
N813: 居住実態
D822: ○雑損控除を受ける方
D828: 損害の原因
D833: 損害年月日
D838: 損害を受けた資産の種類
D843: 損害金額 | CJ843: 円
D848: 保険金などで補てんされた金額 | CJ848: 円
D853: 差引損失額のうち災害関連支出の金額 | CJ853: 円
D863: ○医療費控除を受ける方
D869: 支払った金額 | BT869: 円
D874: 保険等で補てんされた金額 | BT874: 円
D879: 実質負担額 | AL879: =AL869-AL874 -> 0 | BT879: 円
E888: 以上で入力は終了です。 「表面」シート及び「裏面」シートをコピーし、必要書類を添付の上、下記宛先までご郵送ください。
E900: （※必要書類の確認はこちらからできます。）
E907: 【宛先】 〒355-0211 埼玉県比企郡嵐山町大字杉山1030番地1 嵐山町役場 税務課 町民税担当 宛

Sheet 表面（印刷画面）
A1: この申告書を提出した方は事業税の申告書を提出する必要がありません。 | F1: 分離課税に係る所得等のある方は、[町民税・県民税申告書（分離課税等用）]をあわせて提出してください。 | V1: 令和 | AE1: 7 | AJ1: 年度分 町民税・県民税申告書 | ER1: 表
AJ7: 現 住 所 | BA7: =入力してください!AC36 -> 0 | DL7: 業種又は職業 | DV7: =入力してください!AC76 -> 0
M9: 嵐山町長 殿
AJ11: 1月1日現在 の 住 所 | BA11: =入力してください!AC41 -> 0 | DL11: 電話番号 | DV11: =入力してください!AT71 -> 0
AJ16: フリガナ | BA16: =入力してください!AC51 -> 0 | CR16: 個人番号
K18: 提出年月日
AJ19: 氏 名 | BA19: =入力してください!AC46 -> 0
K21: 年 | T21: 月 | AB21: 日
AJ23: 生年 月日 | AP23: =入力してください!AC56 -> 00:00:00 | BK23: 世帯主 の氏名 | BU23: =入力してください!AC61 -> 0 | CU23: 続柄 | DA23: =入力してください!AC66 -> 0
K24: =入力してください!AC32 -> 0 | T24: =入力してください!AU32 -> 0 | AB24: =入力してください!BG32 -> 0
K28: ３所得から差し引かれる金額に関する事項
K31: ⑬ 社会保険料 控 除 | X31: 社 会 保 険 の 種 類 | BI31: 支 払 っ た 保 険 料 | CU31: １ 収 入 金 額 等 | DA31: 事業 | DE31: 営 業 等 | DV31: ア | EA31: =入力してください!AE129 -> 0 | EW31: 円
X34: 源泉徴収分 | BI34: =入力してください!AD289 -> 0 | CQ34: 円
DE36: 農 業 | DV36: イ | EA36: =入力してください!AE150 -> 0
X38: =入力してください!CF306 -> 0 | BI38: =入力してください!DG306 -> 0
DA41: 不 動 産 | DV41: ウ | EA41: =入力してください!AE171 -> 0
X42: =入力してください!CF311 -> 0 | BI42: =入力してください!DG311 -> 0
X46: 合 計 | BI46: =SUM(BI34,BI38,BI42) -> 0 | DA46: 利 子 | DV46: エ
K50: ⑮ 生命保険料 控 除 | X50: 新生命保険料の計 | BI50: 旧生命保険料の計
DA51: 配 当 | DV51: オ | EA51: ='裏面（印刷画面）'!AD14+'裏面（印刷画面）'!AD16+'裏面（印刷画面）'!AD18+'裏面（印刷画面）'!AD20 -> 0
X53: =入力してください!AE338+源泉あり!DK22 -> 0 | BG53: 円 | BI53: =入力してください!AE343+源泉あり!DK27 -> 0 | CQ53: 円
DA56: 給 与 | DV56: カ | EA56: =源泉あり!AE20+源泉なし!V84 -> 0
X57: 新個人年金保険料の計 | BI57: 旧個人年金保険料の計
X60: =入力してください!AK348+源泉あり!DK37 -> 0 | BG60: 円 | BI60: =入力してください!AK353+源泉あり!DK42 -> 0 | CQ60: 円
DA61: 雑 | DE61: 公的年金等 | DV61: キ | EA61: =入力してください!AE213 -> 0
X64: 介護医療保険料の計
HB65: FALSE
DE66: 業 務 | DV66: ク | EA66: =入力してください!AD238 -> 0
X67: =入力してください!AK358+源泉あり!DK32 -> 0 | BG67: 円
HB70: 1
K71: ⑯地震保険 料控除 | X71: 地震保険料の計 | BI71: 旧長期損害保険料の計 | DE71: その他 | DV71: ケ | EA71: =入力してください!AD256 -> 0
FT72: FALSE
X74: =※入力厳禁※計算用!D87 -> 0 | BG74: 円 | BI74: =入力してください!AJ396+源泉あり!DK51 -> 0 | CQ74: 円
DA76: 総合譲渡 | DE76: 短 期 | DV76: コ | EA76: =IF('裏面（印刷画面）'!G33="","",'裏面（印刷画面）'!AD33) -> 
K79: ⑰～⑲ 寡婦、 ひとり親控除、 勤労学生控除 | X79: ⑰ | BA79: ⑱ | BQ79: ⑲
DE81: 長 期 | DV81: サ | EA81: =IF('裏面（印刷画面）'!G34="","",'裏面（印刷画面）'!AD34) -> 
X82: 0 | Y82: [ | AX82: ] | BF82: ひとり親 控 除 | BQ82: (学校名)
BQ84: =入力してください!DL432 -> 0
DA86: 一 時 | DV86: シ | EA86: ='裏面（印刷画面）'!AD35 -> 
FP87: FALSE | GM87: FALSE
GM88: FALSE
GM89: FALSE
K90: ⑳ 障害者 控 除 | X90: 1 | Z90: フリ ガナ | AC90: =入力してください!AG539 -> 0 | BK90: 障害の 程度 | BS90: =入力してください!AJ545 -> 0 | CP90: 級 度 | GM90: FALSE
CU92: ２ 所 得 金 額 | DA92: 事業 | DE92: 営 業 等 | DV92: ① | EA92: =入力してください!AE129-入力してください!AE134 -> 0
Z94: 氏名 | AC94: =入力してください!AG533 -> 0 | FQ94: FALSE
DE97: 農 業 | DV97: ② | EA97: =入力してください!AE150-入力してください!AE155 -> 0
Z99: 個人 番号
DA102: 不 動 産 | DV102: ③ | EA102: =入力してください!AE171-入力してください!AE176 -> 0
X105: 2 | Z105: フリ ガナ | AC105: =入力してください!DC539 -> 0 | BK105: 障害の 程度 | BS105: =入力してください!DF545 -> 0 | CP105: 級 度
DA107: 利 子 | DV107: ④
Z109: 氏名 | AC109: =入力してください!DC533 -> 0
GM110: FALSE
GM111: FALSE
DA112: 配 当 | DV112: ⑤ | EA112: =IF(EA51=0,"",IF(('裏面（印刷画面）'!AD14-'裏面（印刷画面）'!AG14)+('裏面（印刷画面）'!AD16-'裏面（印刷画面）'!AG16)+('裏面（印刷画面）'!AD18-'裏面（印刷画面）'!AG18)+('裏面（印刷画面）'!AD20-'裏面（印刷画面）'!AG20)<0,0,('裏面（印刷画面）'!AD14-'裏面（印刷画面）'!AG14)+('裏面（印刷画面）'!AD16-'裏面（印刷画面）'!AG16)+('裏面（印刷画面）'!AD18-'裏面（印刷画面）'!AG18)+('裏面（印刷画面）'!AD20-'裏面（印刷画面）'!AG20))) ->  | GM112: FALSE
GM113: FALSE
Z114: 個人 番号 | GM114: FALSE
GM115: FALSE
GM116: FALSE
DA117: 給 与 | DV117: ⑥ | EA117: =IF(AND(AND(※入力厳禁※計算用!AE4>0,※入力厳禁※計算用!B34>0),※入力厳禁※計算用!AE4+※入力厳禁※計算用!B34>=100000),※入力厳禁※計算用!U39,※入力厳禁※計算用!AE4) -> 0 | GM117: FALSE
GM118: FALSE
GM119: FALSE
K120: ㉑～㉒ 配偶者控除・ 配偶者特別控 除・同一生計 配偶者 | X120: 配偶者 | AB120: フリ ガナ | AF120: =入力してください!AH641 -> 0 | BE120: 生年月日 | BW120: =IF(入力してください!AH646="","",入力してください!AH646) ->  | GM120: FALSE
GM121: FALSE
DA122: 雑 | DE122: 公的年金等 | DV122: ⑦ | EA122: =※入力厳禁※計算用!B34 -> 0 | GM122: FALSE
GM123: FALSE
AB124: 氏名 | AF124: =入力してください!AH636 -> 0 | BE124: 配偶者の 合計所得金額 | BW124: =入力してください!AH651 -> 0 | CQ124: 円
DE127: 業 務 | DV127: ⑧ | EA127: =入力してください!AD238-入力してください!AD243 -> 0
X129: 個人 番号 | CC129: 同一生計配偶者(控除 対象配偶者を除く。)
DE132: その他 | DV132: ⑨ | EA132: =入力してください!AD256-入力してください!AD261 -> 0
K135: ㉓ 扶 養 控 除 | Q135: 1 | T135: フリ ガナ | X135: =入力してください!AJ720 -> 0 | AT135: 生年 月日 | AY135: =IF(入力してください!AJ725="","",入力してください!AJ725) ->  | BQ135: 同居・ 別居の 区分 | BY135: 0 | CH135: 続柄 | CL135: =入力してください!AJ730 -> 0
GB136: 1
DE137: 合計 (⑦+⑧+⑨) | DV137: ⑩ | EA137: =SUM(EA122,EA127,EA132) -> 0
T139: 氏名 | X139: =入力してください!AJ715 -> 0
DA142: 総合譲渡・一時 | DV142: ⑪ | EA142: ='裏面（印刷画面）'!AC36 -> 
T144: 個人 番号 | BY144: 控除額 | CH144: =※入力厳禁※計算用!AB56 -> 0 | CP144: 万円
DA147: 合 計 | DV147: ⑫ | EA147: =SUM(EA92,EA97,EA102,EA107,EA112,EA117,EA137,EA142) -> 0
Q150: 2 | T150: フリ ガナ | X150: =入力してください!AJ746 -> 0 | AT150: 生年 月日 | AY150: =IF(入力してください!AJ751="","",入力してください!AJ751) ->  | BQ150: 同居・ 別居の 区分 | BY150: 0 | CH150: 続柄 | CL150: =入力してください!AJ756 -> 0
CU153: ４ 所得から差し引かれる金額 | DA153: 社会保険料控除 | DV153: ⑬ | EA153: =BI46 -> 0
T154: 氏名 | X154: =入力してください!AJ741 -> 0
DA158: 小 規 模 企 業 共済等掛金控除 | DV158: ⑭ | EA158: =入力してください!AD310+入力してください!AD315 -> 0
T159: 個人 番号 | BY159: 控除額 | CH159: =※入力厳禁※計算用!AB57 -> 0 | CP159: 万円
DA163: 生命保険料控除 | DV163: ⑮ | EA163: =※入力厳禁※計算用!F83 -> 0
Q165: 3 | T165: フリ ガナ | X165: =入力してください!AJ772 -> 0 | AT165: 生年 月日 | AY165: =IF(入力してください!AJ777="","",入力してください!AJ777) ->  | BQ165: 同居・ 別居の 区分 | BY165: 0 | CH165: 続柄 | CL165: =入力してください!AJ782 -> 0
DA168: 地震保険料控除 | DV168: ⑯ | EA168: =※入力厳禁※計算用!AF87 -> 0
T169: 氏名 | X169: =入力してください!AJ767 -> 0
DA173: 寡婦、ひとり親控除 | DV173: ⑰～ ⑱ | EA173: =※入力厳禁※計算用!B46+※入力厳禁※計算用!F46 -> 0
T174: 個人 番号 | BY174: 控除額 | CH174: =※入力厳禁※計算用!AB58 -> 0 | CP174: 万円
DA178: 勤労学生、障害者控除 | DV178: ⑲～ ⑳ | EA178: =※入力厳禁※計算用!K46+※入力厳禁※計算用!U52 -> 0
Q180: 4 | T180: フリ ガナ | X180: =入力してください!AJ798 -> 0 | AT180: 生年 月日 | AY180: =IF(入力してください!AJ803="","",入力してください!AJ803) ->  | BQ180: 同居・ 別居の 区分 | BY180: 0 | CH180: 続柄 | CL180: =入力してください!AJ808 -> 0
DA183: 配偶者(特別)控除 | DV183: ㉑～ ㉒ | EA183: =※入力厳禁※計算用!N98 -> 0
T184: 氏名 | X184: =入力してください!AJ793 -> 0
DA188: 扶養控除 | DV188: ㉓ | EA188: =※入力厳禁※計算用!Q60 -> 0
T189: 個人 番号 | BY189: 控除額 | CH189: =※入力厳禁※計算用!AB59 -> 0 | CP189: 万円
DA193: 基礎控除 | DV193: ㉔ | EA193: =_xlfn.IFS(EA147<=24000000,430000,AND(24000000<EA147,EA147<=24500000),290000,AND(24500000<EA147,EA147<=25000000),150000,EA147>25000000,0) -> 430000
K196: 16歳未満の扶養親族(控除対象外) | Q196: 1 | T196: フリ ガナ | X196: =入力してください!EE703 -> 0 | AT196: 生年 月日 | AY196: =IF(入力してください!EE708="","",入力してください!EE708) ->  | BQ196: 同居・ 別居の 区分 | BY196: 0 | CH196: 続柄 | CL196: =入力してください!EE713 -> 0
DA198: ⑬から㉔までの計 | DV198: ㉕ | EA198: =SUM(EA153,EA158,EA163,EA168,EA173,EA178,EA183,EA188,EA193) -> 430000
T200: 氏名 | X200: =入力してください!EE698 -> 0
DA203: 雑損控除 | DV203: ㉖ | EA203: =MAX(※入力厳禁※計算用!R66,※入力厳禁※計算用!R67) -> 0
T205: 個人 番号
DA208: 医療費控除 | DP208: 区分 | DV208: ㉗ | EA208: =MIN(※入力厳禁※計算用!AD70,2000000) -> 0
Q211: 2 | T211: フリ ガナ | X211: =入力してください!EE729 -> 0 | AT211: 生年 月日 | AY211: =IF(入力してください!EE734="","",入力してください!EE734) ->  | BQ211: 同居・ 別居の 区分 | BY211: 0 | CH211: 続柄 | CL211: =入力してください!EE739 -> 0
DA213: 合 計 (㉕+㉖+㉗) | DV213: ㉘ | EA213: =SUM(EA198,EA203,EA208) -> 430000
T215: 氏名 | X215: =入力してください!EE724 -> 0
CU219: 地方税法附則第4条の4の規定の適用を選択する場合には、「医療費控除」欄の「区分」の□に「1」と記入してください。
T220: 個人 番号
CU225: ="５ 給与・公的年金等に係る所得以外(令和" & AE1 & "年4月1日において65歳未満の方は給与所得以外)の町民税・県民税の納税方法" -> ５ 給与・公的年金等に係る所得以外(令和7年4月1日において65歳未満の方は給与所得以外)の町民税・県民税の納税方法
Q226: 3 | T226: フリ ガナ | X226: =入力してください!EE755 -> 0 | AT226: 生年 月日 | AY226: =IF(入力してください!EE760="","",入力してください!EE760) ->  | BQ226: 同居・ 別居の 区分 | BY226: 0 | CH226: 続柄 | CL226: =入力してください!EE765 -> 0
T230: 氏名 | X230: =入力してください!EE750 -> 0
CU231: 給与から差引き(特別徴収)
CU234: 自分で納付(普通徴収)
T235: 個人 番号
CU238: 「個人番号」欄には、個人番号(行政手続における特定の個人を識別するための番号の利用等に関する法律第2条第5項に規定する個人番号をいう。)を記載してください。
BQ241: 扶養控除 額の合計 | CC241: =CH144+CH159+CH174+CH189 -> 0 | CP241: 万円
K242: 別居の扶養親族等がいる場合には、裏面「12」に氏名、個人番号及び住所を記入してください。
CU245: ●備考
K247: ㉖ 雑損控除 | T247: 損害の原因 | AR247: 損害年月日 | BN247: 損害を受けた資産の種類
CU248: =_xlfn.IFS(入力してください!BJ105=TRUE,"収入なし",入力してください!BJ111=TRUE,"遺族年金のみ",入力してください!BJ116=TRUE,"障害年金のみ",AND(入力してください!BJ105,入力してください!BJ111,入力してください!BJ116)=FALSE,"") -> 
T250: =入力してください!AV828 -> 0 | AR250: =IF(入力してください!AV833="","",入力してください!AV833) ->  | BN250: =入力してください!AV838 -> 0
T253: 損害金額 | AR253: 保険金などで補填される金額 | BN253: 差引損失額のうち災害関連支出の金額
T256: =入力してください!AV843 -> 0 | AP256: 円 | AR256: =入力してください!AV848 -> 0 | BL256: 円 | BN256: =入力してください!AV853 -> 0 | CQ256: 円
K259: ㉗ 医療費控除 | T259: 支払った医療費等 | BE259: 保険金などで補填される金額
BC262: 円 | CQ262: 円
K266: 裏面にも記載する欄がありますから注意してください。
HG307: 2

Sheet 裏面（印刷画面）
B1: 6給与所得の内訳 (日給などの給与所得のある人で、源泉徴収票のない人は記入してください。) | M1: 7事業・不動産所得に関する事項 | AG1: 裏
B2: 月 | C2: 日給 | F2: 勤務 日数 | H2: 月収 | M2: 所得の種類 | Q2: 所得の生ずる場所 | W2: 収入金額 | AD2: 必要経費 | AG2: 青色申告特別控除額
B3: 1 | C3: =源泉なし!H18 -> 0 | E3: 円 | F3: =源泉なし!X18 -> 0 | K3: 円 | AC3: 円 | AF3: 円 | AH3: 円
B4: 2 | C4: =源泉なし!H23 -> 0 | F4: =源泉なし!X23 -> 0 | H4: =C4*F4 -> 0
B5: 3 | C5: =源泉なし!H28 -> 0 | F5: =源泉なし!X28 -> 0 | H5: =C5*F5 -> 0
B6: 4 | C6: =源泉なし!H33 -> 0 | F6: =源泉なし!X33 -> 0 | H6: =C6*F6 -> 0
B7: 5 | C7: =源泉なし!H38 -> 0 | F7: =源泉なし!X38 -> 0 | H7: =C7*F7 -> 0
B9: 6 | C9: =源泉なし!H43 -> 0 | F9: =源泉なし!X43 -> 0 | H9: =C9*F9 -> 0
M10: 8配当所得に関する事項
B11: 7 | C11: =源泉なし!H48 -> 0 | F11: =源泉なし!X48 -> 0 | H11: =C11*F11 -> 0
M12: 配当所得の種類 | Q12: 所得の生ずる場所 | W12: 支払確定年月 | AD12: 収入金額 | AG12: 必要経費
B13: 8 | C13: =源泉なし!H53 -> 0 | F13: =源泉なし!X53 -> 0 | H13: =C13*F13 -> 0
AF14: 円 | AH14: 円
B15: 9 | C15: =源泉なし!H58 -> 0 | F15: =源泉なし!X58 -> 0 | H15: =C15*F15 -> 0
B17: 10 | C17: =源泉なし!H63 -> 0 | F17: =源泉なし!X63 -> 0 | H17: =C17*F17 -> 0
B19: 11 | C19: =源泉なし!H68 -> 0 | F19: =源泉なし!X68 -> 0 | H19: =C19*F19 -> 0
B21: 12 | C21: =源泉なし!H73 -> 0 | F21: =源泉なし!X73 -> 0 | H21: =C21*F21 -> 0
M22: ９雑所得(公的年金等以外)に関する事項 | Z22: 国外株式等に係る外国所得税額
B23: 賞与等 | G23: =源泉なし!V78 -> 0 | K23: 円
B25: 合計 | G25: =H3+H4+H5+H6+H7+H9+H11+H13+H15+H17+H19+H21+G23 -> 0 | M25: 種目 | Q25: 所得の生ずる場所 | T25: 収入金額 | AC25: 必要経費
AB26: 円 | AH26: 円
B27: 勤務先所在地 | E27: =源泉なし!V90 -> 0
B29: 勤務先名 | E29: =源泉なし!V95 -> 0
B30: 電話番号 | E30: =源泉なし!V100 -> 0
B31: 10総合譲渡・一時所得の所得金額に関する事項
G32: 収入金額 | M32: 必要経費 | Q32: 差引金額 (収入金額－必要経費) | U32: 特別控除額 | AC32: 所得金額(差引金額－特別控除額）
B33: 総合 譲渡 | D33: 短期 | L33: 円 | P33: 円 | Q33: =IF(G33="","",G33-M33) ->  | T33: 円 | AB33: 円 | AC33: イ | AH33: 円
D34: 長期 | Q34: =IF(G34="","",G34-M34) ->  | AC34: ロ
B35: 一時 | Q35: =IF(G35="","",G35-M35) ->  | AC35: ハ | AD35: =IF(G35="","",Q35-U35) -> 
B36: 右上のイの金額を表面のコに、ロの全額を表面のサに、ハの金額を表面のシに記入してください。 右のニの金額を表面の⑪の所得金額欄へ記入してください。 | U36: ニ 合計イ+〔(ロ+ハ)×1/2〕 | AC36: =IF(OR(AND(AD33="",AD34="",AD35=""),AD33<0,AD34<0,AD35<0)=TRUE,"",IF(AD35="",INT(AD33+(AD34*0.5)),INT(AD33+((AD34+AD35)*0.5)))) -> 
B37: 11事業専従者に関する事項 | AA37: 13事業税に関する事項
B38: 1 | C38: フリ ガナ | J38: 続柄 | M38: 生年 月日 | R38: 専従者給与 （控除）額 | Y38: 円 | AA38: 非課税所 得など | AD38: 所得金額 | AH38: 円
C39: 氏 名
AA40: 損益通算の 特例適用前 の不動産所得 | AH40: 円
C41: 個人番号 | O41: 従事月数
B43: 2 | C43: フリ ガナ | J43: 続柄 | M43: 生年 月日 | R43: 専従者給与 （控除）額 | AA43: 事業用 資産の 譲渡損 失など | AC43: 資産の 種類
C45: 氏 名
AC46: 損失額、被災損失額（白) | AH46: 円
C47: 個人 番号 | O47: 従事月数
AA49: 前年中の 開廃業 | AD49: 選択してください
B50: 3 | C50: フリ ガナ | J50: 続柄 | M50: 生年 月日 | R50: 専従者給与 （控除）額
AF51: 月 | AH51: 日
C52: 氏 名
AC53: 他都道府県の事務所等
C54: 個人 番号 | O54: 従事月数
D56: 所得税における青色申告の承認の有無 | O56: 選択してください | R56: 合計額
B57: 12別居の扶養親族等に関する事項
B58: 1 | C58: フリガナ | J58: 個人 番号 | T58: 住 所
C60: 氏 名
B62: 2 | C62: フリガナ | J62: 個人 番号 | T62: 住 所
C64: 氏 名
B66: 3 | C66: フリガナ | J66: 個人 番号 | T66: 住 所
C68: 氏 名
B69: 14寄附金に関する事項
B71: 都道府県、市区町村分 | Q71: 円
B72: (特例控除対象)
B73: 住所地の共同募金会、日赤支部分・都道 府県、市区町村分(特例控除対象以外)
B76: 条例指定分 | H76: 都道府県
H77: 市区町村
B78: 支出した寄附金に応じて、各欄にそれぞれ寄附した金額を記入してください。
B79: 「条例指定分」の「都道府県」、「市区町村」の各欄には、住所地の都道府県、
B80: 市区町村の条例で指定された寄附金を支出した場合にそれぞれ記入してください。
B82: 15所得金額調整控除に関する事項
B84: フリ ガナ | I84: 続柄 | M84: 生年 月日 | R84: 特別障害者に 該当する場合 | Y84: 級 度 | Z84: 別居の場合 の住所
B85: 氏名
B86: 個人番号
B88: 添付書類は、この面の記入事項のない箇所に貼ってください。

Sheet 源泉あり
C3: 源泉徴収票をご覧いただき、該当項目に記載されている内容を入力してください。
C10: ※源泉徴収票が複数ある場合は合計の金額を入力してください。
C20: 支払金額 | BP20: 円
CG22: 新生命保険料の金額 | EL22: 円
C25: 社会保険料等の金額 | BP25: 円
CG27: 旧生命保険料の金額 | EL27: 円
C30: 小規模企業共済等掛金の金額（「社会保険料等の金額」欄の内書きの金額） | BP30: 円
CG32: 介護医療保険料の金額 | EL32: 円
CG37: 新個人年金保険料の金額 | EL37: 円
CG42: 旧個人年金保険料の金額 | EL42: 円
C43: 生命保険料の控除額 | BP43: 円
C48: 地震保険料の控除額 | BP48: 円
CG51: 旧長期損害保険料の金額 | EL51: 円
C73: ≪入力画面に戻る

Sheet 源泉なし
C3: ○下記の表のうち、水色のセルに入力してください。
C12: 月 | H12: 日給 | X12: 勤務日数 | AJ12: 月収
C18: 1 | AJ18: =H18*X18 -> 0 | BC18: 円
C23: 2 | AJ23: =H23*X23 -> 0 | BC23: 円
C28: 3 | AJ28: =H28*X28 -> 0 | BC28: 円
C33: 4 | AJ33: =H33*X33 -> 0 | BC33: 円
C38: 5 | AJ38: =H38*X38 -> 0 | BC38: 円
C43: 6 | AJ43: =H43*X43 -> 0 | BC43: 円
C48: 7 | AJ48: =H48*X48 -> 0 | BC48: 円
C53: 8 | AJ53: =H53*X53 -> 0 | BC53: 円
C58: 9 | AJ58: =H58*X58 -> 0 | BC58: 円
C63: 10 | AJ63: =H63*X63 -> 0 | BC63: 円
C68: 11 | AJ68: =H68*X68 -> 0 | BC68: 円
C73: 12 | AJ73: =H73*X73 -> 0 | BC73: 円
C78: 賞与等 | BC78: 円
C84: 合計 | V84: =AJ18+AJ23+AJ28+AJ33+AJ38+AJ43+AJ48+AJ53+AJ58+AJ63+AJ68+AJ73+V78 -> 0 | BC84: 円
C90: 勤務先所在地
C95: 勤務先名
C100: 勤務先電話番号
D111: ≪入力画面に戻る

Sheet 必要書類
A1: ●郵送での申告に必要なもの（郵送するときに同封するもの）
A2: ① 申告書を提出する全ての方が必要なもの | AY2: 確認欄
A3: 町民税・県民税申告書（このExcelの「表面」シート及び「裏面」シートを印刷したもの） | AY3: □
A4: 本人確認書類（運転免許証、パスポート等顔写真が確認できるもの）のコピー | AY4: □
A5: ※顔写真が確認できない本人確認書類は2 点（健康保険証等）のコピー
A6: ※申告書に収入・控除の記載がない場合は、添付資料をもとに課税額を計算させていただきます。
A7: ⇒資料の添付忘れにご注意ください。
A9: ② 申告する収入、控除 ごとに必要なもの | P9: 提出書類 | AY9: 確認欄
P10: ※提出する書類は、コピーでも問題ありません。
A11: 収入に関する資料 | D11: 営業 | P11: ・収支内訳書（収入・経費・所得を記入してください） ・報酬等の支払調書（外交員報酬等がある場合） | AY11: □
D12: 農業
D13: 不動産
D14: 給与 | P14: 源泉徴収票（無い場合は、給与明細等の収入が分かるもの） | AY14: □
D15: 公的年金 | P15: 源泉徴収票 | AY15: □
D16: その他 | P16: 収入や経費が分かるもの（個人年金の支払証明書、報酬に係る支払調書など） | AY16: □
D18: 一時 | P18: 収入と経費の内容が分かるもの | AY18: □
A19: 控除に関する資料 | D19: 社会保険料控除 | P19: 支払った金額が分かる領収書、支払証明書など | AY19: □
D20: 小規模共済等掛金控除 | P20: 支払った掛金額の証明書 | AY20: □
D21: 生命保険料控除 | P21: 生命保険料控除証明書 | AY21: □
D22: 地震保険料控除 | P22: 地震保険料控除証明書 | AY22: □
D23: 勤労学生控除 | P23: 学生証のコピーや在学証明書 | AY23: □
D24: 障害者控除 | P24: 障害者手帳などのコピー | AY24: □
D25: 扶養控除 | P25: 同封物はありません。※申告書に氏名や生年月日などが記載されていることを確認してください。 | AY25: □
D26: 寄附金控除 | P26: 寄附金の領収書 | AY26: □
D27: 医療費控除 | P27: 医療費控除の明細書または医療費通知 ※郵送で町・県民税の申告書を提出する場合に限り、領収書の合計額を計算したメモ用紙などでも構いません。 | AY27: □
A28: 申告書の控えを希望の場合 | P28: 返信先（ご自宅）の宛名を記載の上、切手を貼った返信用封筒を同封してください。 | AY28: □
A31: 郵送での提出にご協力いただきまして、ありがとうございます。

Sheet ※入力厳禁※計算用
B2: 給与
B3: 源泉あり | K3: 源泉なし | AE3: 所得金額
B4: =源泉あり!AE20 -> 0 | H4: ＋ | K4: =源泉なし!V84 -> 0 | R4: ＝ | T4: =B4+K4 -> 0 | AE4: =ROUNDDOWN(_xlfn.IFS(T4<=550999,J6,AND(551000<=T4,T4<=1618999),J7,AND(1619000<=T4,T4<=1619999),J8,AND(1620000<=T4,T4<=1621999),J9,AND(1622000<=T4,T4<=1623999),J10,AND(1624000<=T4,T4<=1627999),J11,AND(1628000<=T4,T4<=1799999),J12,AND(1800000<=T4,T4<=3599999),J13,AND(3600000<=T4,T4<=6599999),J14,AND(6600000<=T4,T4<=8499999),J15,8500000<=T4,J16),0) -> 0
U5: ↓端数切捨て
B6: ～550999 | H6: → | J6: 0 | T6: =ROUNDDOWN(T4,-3) -> 0
B7: 551000～1618999 | H7: → | J7: =T4-550000 -> -550000
B8: 1619000～1619999 | H8: → | J8: 1069000
B9: 1620000～1621999 | H9: → | J9: 1070000
B10: 1622000～1623999 | H10: → | J10: 1072000
B11: 1624000～1627999 | H11: → | J11: 1074000
B12: 1628000～1799999 | H12: → | J12: =ROUNDDOWN(T4/4,-3)*2.4+100000 -> 100000
B13: 1800000～3599999 | H13: → | J13: =ROUNDDOWN(T4/4,-3)*2.8-80000 -> -80000
B14: 3600000～6599999 | H14: → | J14: =ROUNDDOWN(T4/4,-3)*3.2-440000 -> -440000
B15: 6600000～8499999 | H15: → | J15: =T4*0.9-1100000 -> -1100000
B16: 8500000～ | H16: → | J16: =T4-1950000 -> -1950000
B20: 公的年金 | F20: 年金以外の所得10,000,000円超の人は対応しない
B21: =入力してください!AE213 -> 0
AM22: =入力してください!AC56 -> 00:00:00
B23: 65歳未満（S33.1.2以降生まれ）（R4年分） | S23: 65歳以上（S33.1.1以前生まれ）（R4年分） | AM23: 2025-01-01
B24: ～1299999 | H24: → | J24: =B21-600000 -> -600000 | S24: ～3299999 | Y24: → | AA24: =B21-1100000 -> -1100000 | AM24: 年齢 | AN24: =DATEDIF(AM22,AM23,"Y") -> 125
B25: 1300000～4099999 | H25: → | J25: =B21*0.75-275000 -> -275000 | S25: 3300000～4099999 | Y25: → | AA25: =B21*0.75-275000 -> -275000
B26: 4100000～7699999 | H26: → | J26: =B21*0.85-685000 -> -685000 | S26: 4100000～7699999 | Y26: → | AA26: =B21*0.85-685000 -> -685000
B27: 7700000～9999999 | H27: → | J27: =B21*0.95-1455000 -> -1455000 | S27: 7700000～9999999 | Y27: → | AA27: =B21*0.95-1455000 -> -1455000
B28: 10000000～ | H28: → | J28: =B21-1955000 -> -1955000 | S28: 10000000～ | Y28: → | AA28: =B21-1955000 -> -1955000
B30: 収入の要件を満たす値
B31: =_xlfn.IFS(B21<=1299999,J24,AND(1300000<=B21,B21<=4099999),J25,AND(4100000<=B21,B21<=7699999),J26,AND(7700000<=B21,B21<=9999999),J27,10000000<=B21,J28) -> -600000 | I31: ←65歳未満の場合 | S31: =_xlfn.IFS(B21<=3299999,AA24,AND(3300000<=B21,B21<=4099999),AA25,AND(4100000<=B21,B21<=7699999),AA26,AND(7700000<=B21,B21<=9999999),AA27,10000000<=B21,AA28) -> -1100000 | Z31: ←65歳以上の場合
B33: 年齢要件でどちらに該当するか判定
B34: =MAX(IF(AN24<65,B31,S31),0) -> 0
B38: 給与と年金両方ある場合の所得金額調整控除（上限10万円） | U38: 給与金額
B39: 給与 | E39: =MIN(AE4,100000) -> 0 | N39: =(E39+E40)-100000 -> -100000 | U39: =AE4-N39 -> 100000
B40: 年金 | E40: =MIN(B34,100000) -> 0
B45: 寡婦 | F45: ひとり親 | K45: 勤労学生
B46: =IF('表面（印刷画面）'!HB65=TRUE,260000,0) -> 0 | F46: =IF('表面（印刷画面）'!FP87=TRUE,300000,0) -> 0 | K46: =IF('表面（印刷画面）'!FQ94=TRUE,260000,0) -> 0
B48: 障害
B49: 1人目 | E49: 本人 | H49: =_xlfn.IFS(入力してください!AJ551="特別障害者",300000,入力してください!AJ551="普通障害者",260000,入力してください!AJ551=" ",0) -> 0 | J49: 2人目 | M49: 本人 | P49: =_xlfn.IFS(入力してください!DH551="特別障害者",300000,入力してください!DH551="普通障害者",260000,入力してください!DH551=" ",0) -> 0
E50: 配偶者 | H50: =_xlfn.IFS(入力してください!AJ554="同居特別障害者",530000,入力してください!AJ554="同居以外の特別障害者",300000,入力してください!AJ554="普通障害者",260000,入力してください!AJ554=" ",0) -> 0 | M50: 配偶者 | P50: =_xlfn.IFS(入力してください!DH554="同居特別障害者",530000,入力してください!DH554="同居以外の特別障害者",300000,入力してください!DH554="普通障害者",260000,入力してください!DH554=" ",0) -> 0
E51: 扶養親族 | H51: =_xlfn.IFS(入力してください!AJ557="同居特別障害者",530000,入力してください!AJ557="同居以外の特別障害者",300000,入力してください!AJ557="普通障害者",260000,入力してください!AJ557=" ",0) -> 0 | M51: 扶養親族 | P51: =_xlfn.IFS(入力してください!DH557="同居特別障害者",530000,入力してください!DH557="同居以外の特別障害者",300000,入力してください!DH557="普通障害者",260000,入力してください!DH557=" ",0) -> 0
E52: 計 | H52: =H49+H50+H51 -> 0 | M52: 計 | P52: =P49+P50+P51 -> 0 | U52: =H52+P52 -> 0
B55: 扶養o16 | AI55: 扶養u16
B56: ① | C56: =IF(入力してください!AJ725="","",入力してください!AJ725) ->  | J56: → | L56: =IF(C56="","",DATEDIF(C56,$AM$23,"Y")) ->  | Q56: =_xlfn.IFS(AND(L56>=16,L56<=18),330000,AND(L56>=19,L56<=22),450000,AND(L56>=23,L56<=69),330000,AND(L56>=70,'表面（印刷画面）'!GM110=TRUE,L56<>""),450000,AND(L56>=70,'表面（印刷画面）'!GM110=FALSE,L56<>""),380000,L56="",0) -> 0 | V56: 10000円未満切捨 | AB56: =LEFT(Q56,2) -> 0 | AI56: ① | AJ56: =入力してください!EE708 -> 00:00:00 | AQ56: → | AR56: =DATEDIF(AJ56,$AM$23,"Y") -> 125
B57: ② | C57: =IF(入力してください!AJ751="","",入力してください!AJ751) ->  | J57: → | L57: =IF(C57="","",DATEDIF(C57,$AM$23,"Y")) ->  | Q57: =_xlfn.IFS(AND(L57>=16,L57<=18),330000,AND(L57>=19,L57<=22),450000,AND(L57>=23,L57<=69),330000,AND(L57>=70,'表面（印刷画面）'!GM112=TRUE,L57<>""),450000,AND(L57>=70,'表面（印刷画面）'!GM112=FALSE,L57<>""),380000,L57="",0) -> 0 | V57: 10000円未満切捨 | AB57: =LEFT(Q57,2) -> 0 | AI57: ② | AJ57: =入力してください!EE709 -> 00:00:00 | AQ57: → | AR57: =DATEDIF(AJ57,$AM$23,"Y") -> 125
B58: ③ | C58: =IF(入力してください!AJ777="","",入力してください!AJ777) ->  | J58: → | L58: =IF(C58="","",DATEDIF(C58,$AM$23,"Y")) ->  | Q58: =_xlfn.IFS(AND(L58>=16,L58<=18),330000,AND(L58>=19,L58<=22),450000,AND(L58>=23,L58<=69),330000,AND(L58>=70,'表面（印刷画面）'!GM114=TRUE,L58<>""),450000,AND(L58>=70,'表面（印刷画面）'!GM114=FALSE,L58<>""),380000,L58="",0) -> 0 | V58: 10000円未満切捨 | AB58: =LEFT(Q58,2) -> 0 | AI58: ③ | AJ58: =入力してください!EE710 -> 00:00:00 | AQ58: → | AR58: 125
B59: ④ | C59: =IF(入力してください!AJ803="","",入力してください!AJ803) ->  | J59: → | L59: =IF(C59="","",DATEDIF(C59,$AM$23,"Y")) ->  | Q59: =_xlfn.IFS(AND(L59>=16,L59<=18),330000,AND(L59>=19,L59<=22),450000,AND(L59>=23,L59<=69),330000,AND(L59>=70,'表面（印刷画面）'!GM116=TRUE,L59<>""),450000,AND(L59>=70,'表面（印刷画面）'!GM116=FALSE,L59<>""),380000,L59="",0) -> 0 | V59: 10000円未満切捨 | AB59: =LEFT(Q59,2) -> 0
Q60: =Q56+Q57+Q58+Q59 -> 0
B65: 雑損控除
B66: 実質損失額 | F66: → | H66: =入力してください!AV843-入力してください!AV848 -> 0 | O66: 計算 | R66: =MAX(H66-'表面（印刷画面）'!EA147*0.1,0) -> 0
B67: 災害関連支出 | F67: → | H67: =入力してください!AV853 -> 0 | R67: =MAX(H67-50000,0) -> 0
B69: 医療費
B70: 10万円 | G70: 100000 | M70: 低いほう→ | Q70: =MIN(G70,G71) -> 0 | W70: 実質負担額 | AA70: =入力してください!AL879 -> 0 | AD70: =MAX(AA70-Q70,0) -> 0
B71: 総所得金額の5％ | G71: =MAX(入力してください!AL879-'表面（印刷画面）'!EA147*0.05,0) -> 0
B74: 生命保険料 | AN74: 源泉+追加分
A75: ① | B75: 1 | C75: 新生命 | F75: =_xlfn.IFS(AP75<=12000,AP75,AND(AP75>12000,AP75<=32000),AP75*0.5+6000,AND(AP75>32000,AP75<=56000),AP75*0.25+14000,AP75>56000,28000) -> 0 | Q75: ② | R75: 介護 | T75: =_xlfn.IFS(AP77<=12000,AP77,AND(AP77>12000,AP77<=32000),AP77*0.5+6000,AND(AP77>32000,AP77<=56000),AP77*0.25+14000,AP77>56000,28000) -> 0 | AA75: ③ | AB75: ⑴ | AC75: 新個人 | AE75: =_xlfn.IFS(AP78<=12000,AP78,AND(AP78>12000,AP78<=32000),AP78*0.5+6000,AND(AP78>32000,AP78<=56000),AP78*0.25+14000,AP78>56000,28000) -> 0 | AN75: 新生命 | AP75: =入力してください!AE338+源泉あり!DK22 -> 0
B76: 2 | C76: 旧生命 | F76: =_xlfn.IFS(AP76<=15000,AP76,AND(AP76>15000,AP76<=40000),AP76*0.5+7500,AND(AP76>40000,AP76<=70000),AP76*0.25+17500,AP76>70000,35000) -> 0 | AB76: ⑵ | AC76: 旧個人 | AE76: =_xlfn.IFS(AP79<=15000,AP79,AND(AP79>15000,AP79<=40000),AP79*0.5+7500,AND(AP79>40000,AP79<=70000),AP79*0.25+17500,AP79>70000,35000) -> 0 | AN76: 旧生命 | AP76: =入力してください!AE343+源泉あり!DK27 -> 0
B77: 1+2 | D77: =F75+F76 -> 0 | K77: 28000 | AB77: ⑴+⑵ | AD77: =AE75+AE76 -> 0 | AJ77: 28000 | AN77: 介護 | AP77: =入力してください!AK358+源泉あり!DK32 -> 0
B78: 少ない額 | E78: =MIN(D77,K77) -> 0 | AB78: 少ない額 | AE78: =MIN(AD77,AJ77) -> 0 | AN78: 新個人 | AP78: =入力してください!AK353+源泉あり!DK37 -> 0
AN79: 旧個人 | AP79: =入力してください!AK353+源泉あり!DK42 -> 0
C80: ① | D80: =IF(F76>28000,F76,E78) -> 0 | AC80: ③ | AD80: =IF(AE76>28000,AE76,AE78) -> 0
B82: ①+②+③ | G82: =D80+T75+AD80 -> 0 | M82: 70000
B83: 少ない額 | F83: =MIN(G82,M82) -> 0
B86: 地震保険料
B87: 地震 | D87: =入力してください!AJ391+W93 -> 0 | P87: 1 | Q87: 地震 | S87: =_xlfn.IFS(D87<=50000,ROUNDUP(D87*0.5,0),D87>50000,25000) -> 0 | W87: 1+2 | Y87: =S87+S88 -> 0 | AD87: 少ないほう | AF87: =MIN(Y87,Y88) -> 0
B88: 旧長期 | D88: =入力してください!AJ396+G93 -> 0 | P88: 2 | Q88: 旧長期 | S88: =_xlfn.IFS(D88<=5000,D88,AND(D88>5000,D88<=15000),ROUNDUP(D88*0.5+2500,0),D88>15000,10000) -> 0 | Y88: 25000
B91: 給報のみの人
B92: 保険料控除額 | G92: =源泉あり!AE48 -> 0 | K92: 旧長期の控除額 | R92: 地震の控除額 | W92: 地震の支払額
B93: 旧長期支払額 | G93: =源泉あり!DK51 -> 0 | K93: =_xlfn.IFS(G93<=10000,G93,AND(G93>10000,G93<=20000),G93*0.5+5000,G93>20000,15000) -> 0 | R93: =G92-K93 -> 0 | W93: =_xlfn.IFS(R93<50000,R93,R93=50000,50000) -> 0
B96: 配偶者控除
B97: (配)年齢 | E97: =DATEDIF(入力してください!AH646,※入力厳禁※計算用!AM23,"Y") -> 125 | AM97: 配偶者控除 | AN97: =_xlfn.IFS(AND(E97<70,E98<=480000,E99<=9000000),330000,AND(E97<70,E98<=480000,E99>9000000,E99<=9500000),220000,AND(E97<70,E98<=480000,E99>9500000,E99<=10000000),110000,AND(E97<70,E98<=480000,E99>10000000),0,AND(E97>=70,E98<=480000,E99<=9000000),380000,AND(E97>=70,E98<=480000,E99>9000000,E99<=9500000),260000,AND(E97>=70,E98<=480000,E99>9500000,E99<=10000000),130000,AND(E97>=70,E98<=480000,E99>10000000),0) -> 380000
B98: (配)所得金額 | E98: =入力してください!AH651 -> 0 | I98: 配偶者（特別）控除 | N98: =_xlfn.IFS(入力してください!AH636="",0,AND(E97<70,E98<=480000,E99<=9000000),330000,AND(E97<70,E98<=480000,E99>9000000,E99<=9500000),220000,AND(E97<70,E98<=480000,E99>9500000,E99<=10000000),110000,AND(E97<70,E98<=480000,E99>10000000),0,AND(E97>=70,E98<=480000,E99<=9000000),380000,AND(E97>=70,E98<=480000,E99>9000000,E99<=9500000),260000,AND(E97>=70,E98<=480000,E99>9500000,E99<=10000000),130000,AND(E97>=70,E98<=480000,E99>10000000),0,AND(E98>480000,E98<=950000,E99<=9000000),330000,AND(E98>480000,E98<=950000,E99>9000000,E99<=9500000),220000,AND(E98>480000,E98<=950000,E99>9500000,E99<=10000000),110000,AND(E98>480000,E98<=9500000,E99>10000000),0,AND(E98>950000,E98<=1000000,E99<=9000000),330000,AND(E98>950000,E98<=1000000,E99>9000000,E99<=9500000),220000,AND(E98>950000,E98<=1000000,E99>9500000,E99<=10000000),110000,AND(E98>950000,E98<=1000000,E99>10000000),0,AND(E98>1000000,E98<=1050000,E99<=9000000),310000,AND(E98>1000000,E98<=1050000,E99>9000000,E99<=9500000),210000,AND(E98>1000000,E98<=1050000,E99>9500000,E99<=10000000),110000,AND(E98>1000000,E98<=1050000,E99>10000000),0,AND(E98>1050000,E98<=1100000,E99<=9000000),260000,AND(E98>1050000,E98<=1100000,E99>9000000,E99<=9500000),180000,AND(E98>1050000,E98<=1100000,E99>9500000,E99<=10000000),90000,AND(E98>1050000,E98<=1100000,E99>10000000),0,AND(E98>1100000,E98<=1150000,E99<=9000000),210000,AND(E98>1100000,E98<=1150000,E99>9000000,E99<=9500000),140000,AND(E98>1100000,E98<=1150000,E99>9500000,E99<=10000000),70000,AND(E98>1100000,E98<=1150000,E99>10000000),0,AND(E98>1150000,E98<=1200000,E99<=9000000),160000,AND(E98>1150000,E98<=1200000,E99>9000000,E99<=9500000),110000,AND(E98>1150000,E98<=1200000,E99>9500000,E99<=10000000),60000,AND(E98>1150000,E98<=1200000,E99>10000000),0,AND(E98>1200000,E98<=1250000,E99<=9000000),110000,AND(E98>1200000,E98<=1250000,E99>9000000,E99<=9500000),80000,AND(E98>1200000,E98<=1250000,E99>9500000,E99<=10000000),40000,AND(E98>1200000,E98<=1250000,E99>10000000),0,AND(E98>1250000,E98<=1300000,E99<=9000000),60000,AND(E98>1250000,E98<=1300000,E99>9000000,E99<=9500000),40000,AND(E98>1250000,E98<=1300000,E99>9500000,E99<=10000000),20000,AND(E98>1250000,E98<=1300000,E99>10000000),0,AND(E98>1300000,E98<=1330000,E99<=9000000),30000,AND(E98>1300000,E98<=1330000,E99>9000000,E99<=9500000),20000,AND(E98>1300000,E98<=1330000,E99>9500000,E99<=10000000),10000,AND(E98>1300000,E98<=1330000,E99>10000000),0,AND(E98>1330000,E99>=0),0) -> 0
B99: (本)所得金額 | E99: ='表面（印刷画面）'!EA147 -> 0
AP786: FALSE
